[Event "FIDE World School-ch O-17 2025"]
[Site "Vrnjacka Banja"]
[Date "2025.03.25"]
[Round "6.1"]
[White "Bogdanov, Artyom"]
[Black "Orgilon Batsaikhan"]
[Result "1-0"]
[Annotator "TA"]
[ECO "A35"]
[WhiteElo "2373"]
[BlackElo "2024"]
[PlyCount "99"]
[EventDate "2025.03.19"]
[EventType "swiss"]
[EventCountry "SRB"]
[SourceTitle "playchess.com"]
[Source "ChessBase"]
[SourceQuality "1"]
[TimeControl "5400+30"]

{[%evp 13,99,37,89,84,88,63,80,62,108,74,93,70,68,63,131,84,100,92,109,85,89,70,111,55,147,156,195,112,220,176,177,166,228,170,393,407,457,342,369,347,355,345,435,322,295,313,308,287,440,408,429,415,483,294,327,286,287,282,320,333,344,292,318,270,312,275,275,0,302,0,270,258,460,435,535,279,321,284,297,308,606,631,648,645,733,727,815,810]} 1. Nf3 {[%emt 1:31:00]} c5 {[%emt 0:00:11]} 2. c4 {[%emt 0:00:00]} Nc6 {[%emt 0:00:15]} 3. Nc3 {[%emt 0:00:00]} g6 {[%emt 0:00:33]} 4. e3 {[%emt 0:00:00]} Bg7 {[%emt 0:01:12]} 5. d4 {[%emt 0:00:00]} cxd4 {[%emt 0:16:55]} 6. exd4 {[%emt 0:00:00]} d6 {[%emt 0:00:09]} 7. Be2 {[%emt 0:00:00]} Nf6 {[%emt 0:02:59]} (7... e6 $14) 8. d5 $16 {[%emt 0:00:00] A35: Symmetrical English: 2 Nc3 Nc6 3 Nf3.} Nb8 {[%emt 0:00:14]} 9. h3 {[%emt 0:00:00]} O-O {[%emt 0:05:43]} 10. O-O {[%emt 0:00:00] White is better.} Na6 {[%emt 0:02:21]} (10... e5 $14) 11. Re1 {[%emt 0:00:00]} Bd7 {[%emt 0:02:16]} 12. Bf1 {[%emt 0:00:00]} Rc8 $146 {[%emt 0:00:30]} (12... Re8 13. Bg5 h6 14. Be3 Nc7 15. Qd2 Kh7 16. Rad1 Qb8 17. b4 b5 18. c5 a5 {1-0 Bruno,F (2421)-Xia,J (2287) ITA-ch sf 73rd 2013 (2)}) 13. Be3 {[%emt 0:00:00]} e5 {[%emt 0:19:20]} (13... Nc5 $14) 14. dxe6 {[%emt 0:00:00]} (14. Bxa7 $142 Nh5 (14... b6 $2 15. Qb3 $18) 15. a4) 14... Bxe6 {[%emt 0:02:04]} 15. Nb5 {[%emt 0:00:00]} d5 {[%emt 0:08:32]} 16. Nxa7 {[%emt 0:00:00][%csl Ob7,Od5] Black has weak pawns White is more active.} (16. Bxa7 dxc4 17. a4 Nb4 $14) 16... Ra8 {[%emt 0:00:16]} 17. Qb3 $36 {[%emt 0:00:00][%mdl 2048] White has some pressure.} Ne4 {[%emt 0:10:11]} 18. Nb5 {[%emt 0:00:00] Repels d4} (18. Qxb7 Nac5 19. Bxc5 Nxc5 $17) ({Better is} 18. Rad1 $16) 18... Nec5 {[%emt 0:07:50]} (18... dxc4 $14 19. Bxc4 Nec5) 19. Qa3 {[%emt 0:00:00]} b6 {[%emt 0:00:55] [#]} 20. Bd4 {[%emt 0:00:00]} (20. cxd5 $1 $18 Bxd5 21. Rad1) 20... Bh6 {[%emt 0:05:54]} (20... dxc4 $16 21. Rad1 Nd3 22. Bxd3 cxd3 23. Rxd3 (23. Bxg7 Kxg7 24. Nbd4 Nc5 $16) 23... Bxd4) 21. Qc3 {[%emt 0:00:23]} Ne4 {[%emt 0:00:33]} 22. Qc2 {[%emt 0:01:02]} Bf5 {[%emt 0:01:15]} (22... Nb4 $142 23. Qe2 Rxa2 24. Rxa2 Nxa2) 23. cxd5 {[%emt 0:03:32]} Nb4 $2 {[%emt 0:03:58]} (23... Nd2 24. Qd1 Nxf1) 24. Qb3 $18 {[%emt 0:01:52]} Nxd5 {[%emt 0:01:59]} 25. Rad1 {[%emt 0:00:35]} Nf4 {[%emt 0:01:46]} 26. Be5 {[%emt 0:01:14]} Qc8 {[%emt 0:00:44]} 27. Nbd4 {[%emt 0:01:45]} Nc5 {[%emt 0:02:40] [#]} 28. Nxf5 $1 {[%emt 0:01:44]} Qxf5 {[%emt 0:00:04]} 29. Qxb6 {[%emt 0:00:14]} Nce6 {[%emt 0:01:15]} 30. Qb3 {[%emt 0:00:58]} Qh5 {[%emt 0:01:34]} (30... Rfc8 $142 31. a3 Nc5) 31. Nh2 {[%emt 0:00:40][%cal Bf3h2,Bh2g4,Bg4e5][%mdl 32]} Bg7 {[%emt 0:00:52]} 32. Bxg7 {[%emt 0:00:31]} Kxg7 {[%emt 0:00:03]} 33. Ng4 {[%emt 0:00:25]} Qc5 {[%emt 0:00:58]} 34. Rc1 {[%emt 0:00:54]} Qa5 {[%emt 0:01:29]} 35. a3 {[%emt 0:00:39]} h5 {[%emt 0:00:00]} 36. Ne5 {[%emt 0:00:18]} Rac8 {[%emt 0:00:00] Strongly threatening ...Rxc1.} 37. Nc4 {[%emt 0:00:33]} Qg5 {[%emt 0:00:01]} 38. Qc3+ {[%emt 0:00:31]} Kh7 {[%emt 0:00:09][%cal Oc8c4]} 39. Qg3 {[%emt 0:00:22]} Qf6 {[%emt 0:00:41]} 40. Qc3 {[%emt 0:00:42]} Qg5 {[%emt 0:00:04][%cal Oc8c4]} 41. Qg3 {[%emt 0:00:30]} Qf6 {[%emt 0:00:07]} 42. Qe3 {[%emt 0:00:19]} Rc5 $2 {[%emt 0:00:37]} (42... Kg7 {was called for.} 43. Rcd1 Rfd8) 43. Ne5 {[%emt 0:00:43]} Rxc1 {[%emt 0:01:00]} 44. Rxc1 {[%emt 0:00:20] aiming for Nd7.} Re8 {[%emt 0:00:14]} 45. Re1 {[%emt 0:00:31]} Qf5 {[%emt 0:01:34]} 46. Qe4 {[%emt 0:00:36]} Qg5 $2 {[%emt 0:00:51]} (46... Qxe4 47. Rxe4 Kg7) 47. g3 {[%emt 0:00:19][%cal Bg2g3,Bg3f4][%mdl 32] White is clearly winning.} Kg7 {[%emt 0:00:38]} 48. Nf3 {[%emt 0:00:17]} Qc5 {[%emt 0:00:24]} 49. gxf4 {[%emt 0:00:56]} Nc7 {[%emt 0:00:10]} 50. Qc4 {[%emt 0:00:18] Weighted Error Value: White=0.45/Black=0.50  Mistake:       	White=3     	Black=9      Inaccurate:     	White=3     	Black=1      OK:         	White=14    	Black=10     Best:        	White=1     	Black=2} 1-0

[Event "FIDE World School-ch O-17 2025"]
[Site "Vrnjacka Banja"]
[Date "2025.03.25"]
[Round "6.2"]
[White "Elmirzaev, Khondamir"]
[Black "Kazhmuratov, Altair"]
[Result "0-1"]
[Annotator "NA RC"]
[ECO "E73"]
[WhiteElo "2036"]
[BlackElo "1971"]
[PlyCount "119"]
[EventDate "2025.03.19"]
[EventType "swiss"]
[EventCountry "SRB"]
[SourceTitle "playchess.com"]
[Source "ChessBase"]
[SourceQuality "1"]
[TimeControl "5400+30"]

1. d4 {[%emt 0:00:04]} Nf6 {[%emt 0:01:07]} 2. c4 {[%emt 0:00:08]} g6 {[%emt 0:00:06]} 3. Nc3 {[%emt 0:00:03]} Bg7 {[%emt 0:00:46]} 4. e4 {[%emt 0:00:06]} d6 {[%emt 0:00:03]} 5. Be2 {[%emt 0:00:03]} O-O {[%emt 0:00:07]} 6. h4 {[%emt 0:00:02]} h5 {[%emt 0:00:58]} 7. Bg5 {[%emt 0:01:03]} Nbd7 {[%emt 0:03:36]} 8. Nh3 {[%emt 0:00:49]} c5 {[%emt 0:03:18]} 9. d5 {[%emt 0:00:21]} Ne5 {[%emt 0:01:34]} 10. Qd2 {[%emt 0:01:41]} a6 {[%emt 0:02:46]} 11. f3 {[%emt 0:00:36]} Rb8 {[%emt 0:08:53]} 12. a4 {[%emt 0:02:41]} Qa5 {[%emt 0:00:59]} 13. Nd1 {[%emt 0:06:20]} Qxd2+ {[%emt 0:00:59]} 14. Bxd2 {[%emt 0:03:17]} e6 {[%emt 0:07:35]} 15. a5 {[%emt 0:07:23]} exd5 {[%emt 0:00:28]} 16. cxd5 {[%emt 0:00:37]} Bd7 {[%emt 0:04:09]} 17. Nhf2 {[%emt 0:07:58]} Bb5 {[%emt 0:06:07]} 18. Ne3 {[%emt 0:05:34]} Rfe8 {[%emt 0:04:58]} 19. Ra3 {[%emt 0:09:35]} b6 {[%emt 0:09:51]} 20. axb6 {[%emt 0:02:44]} Rxb6 {[%emt 0:00:34]} 21. Nfd1 {[%emt 0:08:31]} Nfd7 {[%emt 0:05:40]} 22. Ra2 {[%emt 0:22:29]} Nd3+ {[%emt 0:05:53]} 23. Kf1 {[%emt 0:00:25]} Reb8 {[%emt 0:12:21]} 24. b3 {[%emt 0:02:46]} N7e5 {[%emt 0:05:23]} 25. Nc3 {[%emt 0:01:24]} Nb4 {[%emt 0:02:33]} 26. Ra5 {[%emt 0:00:44]} Bxe2+ {[%emt 0:00:24]} 27. Kxe2 {[%emt 0:00:22]} Nbd3 {[%emt 0:00:34]} 28. Ned1 {[%emt 0:06:13]} Rxb3 {[%emt 0:07:26]} 29. Rxa6 {[%emt 0:00:09]} Nb2 {[%emt 0:00:25]} 30. Nxb2 {[%emt 0:03:55]} Rxb2 {[%emt 0:00:06]} 31. Nd1 {[%emt 0:00:18]} Bh6 {[%emt 0:04:32]} 32. Nxb2 {[%emt 0:00:43]} Rxb2 {[%emt 0:00:01]} 33. Rd1 {[%emt 0:00:34]} Nc4 {[%emt 0:00:18]} 34. Kd3 {[%emt 0:01:52]} Nxd2 {[%emt 0:00:14]} 35. e5 {[%emt 0:00:44]} dxe5 {[%emt 0:01:16]} 36. Kc3 {[%emt 0:00:20]} Rb3+ {[%emt 0:00:39]} 37. Kc2 {[%emt 0:00:01]} Rb4 {[%emt 0:00:30]} 38. d6 {[%emt 0:00:31]} Rc4+ {[%emt 0:00:20]} 39. Kd3 {[%emt 0:00:27]} Rd4+ {[%emt 0:00:03]} 40. Ke2 {[%emt 0:00:06]} c4 {[%emt 0:00:53]} 41. g3 {[%emt 0:00:07]} c3 {[%emt 0:00:42]} 42. Rc6 {[%emt 0:00:10]} c2 {[%emt 0:01:33]} 43. Rxc2 {[%emt 0:00:10]} Rxd6 {[%emt 0:00:10]} 44. f4 {[%emt 0:01:04]} exf4 {[%emt 0:00:38]} 45. gxf4 {[%emt 0:01:29]} Bxf4 {[%emt 0:00:07]} 46. Rc8+ {[%emt 0:00:10]} Kg7 {[%emt 0:00:05]} 47. Ra1 {[%emt 0:00:33]} Nb3 {[%emt 0:01:07]} 48. Raa8 {[%emt 0:00:13]} Nd4+ {[%emt 0:00:16]} 49. Kf1 {[%emt 0:00:18]} Nf5 {[%emt 0:00:22]} 50. Rg8+ {[%emt 0:00:07]} Kf6 {[%emt 0:00:06]} 51. Ra7 {[%emt 0:00:05]} Re6 {[%emt 0:01:14]} 52. Rf8 {[%emt 0:00:33]} Re7 {[%emt 0:00:13]} 53. Ra4 {[%emt 0:00:08]} Bg3 {[%emt 0:00:19]} 54. Kg2 {[%emt 0:00:04]} Bxh4 {[%emt 0:00:11]} 55. Rc8 {[%emt 0:00:03]} Bg3 {[%emt 0:00:54]} 56. Rc6+ {[%emt 0:00:07]} Kg5 {[%emt 0:00:21]} 57. Ra2 {[%emt 0:00:06]} h4 {[%emt 0:00:18]} 58. Kh3 {[%emt 0:00:06]} Re1 {[%emt 0:02:29]} 59. Kg2 {[%emt 0:00:09]} h3+ {[%emt 0:00:00]} 60. Kf3 {[%emt 0:00:17]} 0-1

[Event "FIDE World School-ch O-17 2025"]
[Site "Vrnjacka Banja"]
[Date "2025.03.25"]
[Round "6.3"]
[White "Topuz, Mirac Melih"]
[Black "Yildiz, Egehan"]
[Result "1-0"]
[Annotator "NA RC"]
[ECO "A84"]
[WhiteElo "2113"]
[BlackElo "2204"]
[PlyCount "95"]
[EventDate "2025.03.19"]
[EventType "swiss"]
[EventCountry "SRB"]
[SourceTitle "playchess.com"]
[Source "ChessBase"]
[SourceQuality "1"]
[TimeControl "5400+30"]

1. d4 {[%emt 0:00:01]} d5 {[%emt 0:00:14]} 2. c4 {[%emt 0:00:07]} e6 {[%emt 0:00:06]} 3. Nc3 {[%emt 0:00:08]} c6 {[%emt 0:00:06]} 4. e3 {[%emt 0:10:48]} f5 {[%emt 0:02:19]} 5. g4 {[%emt 0:04:49]} Nf6 {[%emt 0:42:47]} 6. h3 {[%emt 0:02:24]} Ne4 {[%emt 0:07:21]} 7. gxf5 {[%emt 0:14:53]} exf5 {[%emt 0:01:41]} 8. Nxe4 {[%emt 0:00:27]} dxe4 {[%emt 0:01:01]} 9. Bd2 {[%emt 0:00:34]} Be6 {[%emt 0:01:31]} 10. Qc2 {[%emt 0:03:48]} Na6 {[%emt 0:01:50]} 11. a3 {[%emt 0:00:55]} Nc7 {[%emt 0:03:37]} 12. Ne2 {[%emt 0:01:11]} Bd6 {[%emt 0:02:29]} 13. O-O-O {[%emt 0:04:07]} b5 {[%emt 0:05:22]} 14. d5 {[%emt 0:27:47]} cxd5 {[%emt 0:02:16]} 15. c5 {[%emt 0:05:09]} Be5 {[%emt 0:01:35]} 16. Bc3 {[%emt 0:00:28]} Qf6 {[%emt 0:01:56]} 17. Bxe5 {[%emt 0:02:35]} Qxe5 {[%emt 0:00:02]} 18. Rg1 {[%emt 0:01:00]} O-O {[%emt 0:01:59]} 19. h4 {[%emt 0:00:51]} b4 {[%emt 0:04:17]} 20. axb4 {[%emt 0:02:08]} a5 {[%emt 0:00:37]} 21. bxa5 {[%emt 0:08:35]} Rxa5 {[%emt 0:00:11]} 22. Nd4 {[%emt 0:00:06]} f4 {[%emt 0:06:41]} 23. Qc3 {[%emt 0:06:00]} Ra1+ {[%emt 0:00:50]} 24. Kc2 {[%emt 0:00:00]} Rxd1 {[%emt 0:00:23]} 25. Kxd1 {[%emt 0:00:02]} fxe3 {[%emt 0:01:26]} 26. fxe3 {[%emt 0:00:00]} g6 {[%emt 0:03:39]} 27. Be2 {[%emt 0:02:54]} Qh2 {[%emt 0:03:25]} 28. Qe1 {[%emt 0:00:09]} Ra8 {[%emt 0:00:59]} 29. Kd2 {[%emt 0:02:10]} Ra5 {[%emt 0:01:16]} 30. Qg3 {[%emt 0:00:46]} Qxg3 {[%emt 0:00:41]} 31. Rxg3 {[%emt 0:00:03]} Bd7 {[%emt 0:00:54]} 32. Rg1 {[%emt 0:00:38]} Kf7 {[%emt 0:00:24]} 33. Rc1 {[%emt 0:00:34]} Ke7 {[%emt 0:00:45]} 34. b4 {[%emt 0:00:14]} Ra2+ {[%emt 0:00:17]} 35. Rc2 {[%emt 0:00:13]} Rxc2+ {[%emt 0:00:14]} 36. Kxc2 {[%emt 0:00:01]} Ne6 {[%emt 0:00:38]} 37. Kc3 {[%emt 0:00:59]} h6 {[%emt 0:00:05]} 38. Nxe6 {[%emt 0:00:11]} Bxe6 {[%emt 0:00:19]} 39. Kd4 {[%emt 0:00:05]} Kd7 {[%emt 0:01:08]} 40. b5 {[%emt 0:00:09]} Kc7 {[%emt 0:01:27]} 41. Ke5 {[%emt 0:00:12]} Bh3 {[%emt 0:00:01]} 42. Kxd5 {[%emt 0:00:31]} Bg2 {[%emt 0:00:01]} 43. b6+ {[%emt 0:00:44]} Kb7 {[%emt 0:00:05]} 44. Kd6 {[%emt 0:00:03]} g5 {[%emt 0:01:07]} 45. hxg5 {[%emt 0:00:02]} hxg5 {[%emt 0:00:01]} 46. Bc4 {[%emt 0:00:28]} g4 {[%emt 0:00:12]} 47. Bd5+ {[%emt 0:00:04]} Kc8 {[%emt 0:00:08]} 48. c6 {[%emt 0:00:11]} 1-0

[Event "FIDE World School-ch O-17 2025"]
[Site "Vrnjacka Banja"]
[Date "2025.03.25"]
[Round "6.4"]
[White "Taran, Egor A"]
[Black "Panda, Barnabas"]
[Result "1-0"]
[Annotator "NA RC"]
[ECO "B56"]
[WhiteElo "1961"]
[BlackElo "2147"]
[PlyCount "81"]
[EventDate "2025.03.19"]
[EventType "swiss"]
[EventCountry "SRB"]
[SourceTitle "playchess.com"]
[Source "ChessBase"]
[SourceQuality "1"]
[TimeControl "5400+30"]

1. e4 {[%emt 0:00:01]} c5 {[%emt 0:00:16]} 2. Nf3 {[%emt 0:00:04]} d6 {[%emt 0:00:11]} 3. d4 {[%emt 0:00:04]} cxd4 {[%emt 0:00:09]} 4. Nxd4 {[%emt 0:00:04]} Nf6 {[%emt 0:00:11]} 5. Nc3 {[%emt 0:00:04]} Nc6 {[%emt 0:00:12]} 6. f3 {[%emt 0:00:05]} e5 {[%emt 0:00:10]} 7. Nb3 {[%emt 0:00:04]} Be6 {[%emt 0:01:48]} 8. Be3 {[%emt 0:00:18]} Be7 {[%emt 0:01:14]} 9. Nd5 {[%emt 0:00:09]} O-O {[%emt 0:07:00]} 10. c3 {[%emt 0:00:13]} Ne8 {[%emt 0:10:42]} 11. Be2 {[%emt 0:13:08]} f5 {[%emt 0:04:27]} 12. exf5 {[%emt 0:12:54]} Rxf5 {[%emt 0:01:43]} 13. O-O {[%emt 0:03:31]} Nc7 {[%emt 0:15:42]} 14. c4 {[%emt 0:03:11]} Bg5 {[%emt 0:08:12]} 15. Bf2 {[%emt 0:07:37]} Rf8 {[%emt 0:04:59]} 16. Bd3 {[%emt 0:02:58]} Ne7 {[%emt 0:04:55]} 17. Be4 {[%emt 0:05:50]} Ncxd5 {[%emt 0:03:52]} 18. cxd5 {[%emt 0:00:39]} Bd7 {[%emt 0:04:53]} 19. Qd3 {[%emt 0:01:44]} g6 {[%emt 0:02:15]} 20. a4 {[%emt 0:05:40]} Kg7 {[%emt 0:03:29]} 21. Nd2 {[%emt 0:04:19]} Nf5 {[%emt 0:06:50]} 22. Nc4 {[%emt 0:02:39]} b5 {[%emt 0:04:15]} 23. axb5 {[%emt 0:01:04]} Bxb5 {[%emt 0:00:09]} 24. b3 {[%emt 0:05:13]} Qc7 {[%emt 0:02:36]} 25. Rfe1 {[%emt 0:03:44]} Nd4 {[%emt 0:01:40]} 26. h4 {[%emt 0:05:28]} Bf6 {[%emt 0:00:23]} 27. Rec1 {[%emt 0:01:24]} Qe7 {[%emt 0:00:54]} 28. g3 {[%emt 0:01:46]} Rfc8 {[%emt 0:01:52]} 29. Kg2 {[%emt 0:01:10]} Qd7 {[%emt 0:03:12]} 30. h5 {[%emt 0:06:05]} Nf5 {[%emt 0:03:36]} 31. g4 {[%emt 0:01:06]} Ne7 {[%emt 0:00:45]} 32. Be3 {[%emt 0:00:38]} g5 {[%emt 0:02:49]} 33. Bxh7 {[%emt 0:00:23]} Nxd5 {[%emt 0:01:01]} 34. Bf5 {[%emt 0:03:54]} Bxc4 {[%emt 0:00:33]} 35. bxc4 {[%emt 0:00:23]} Nxe3+ {[%emt 0:00:14]} 36. Qxe3 {[%emt 0:00:01]} Qb7 {[%emt 0:00:01]} 37. Bxc8 {[%emt 0:00:16]} Qb2+ {[%emt 0:00:28]} 38. Qf2 {[%emt 0:00:56]} Qxf2+ {[%emt 0:00:06]} 39. Kxf2 {[%emt 0:00:01]} Rxc8 {[%emt 0:00:09]} 40. Rxa7+ {[%emt 0:00:03]} Kf8 {[%emt 0:00:19]} 41. Rb1 {[%emt 0:01:15]} 1-0

[Event "FIDE World School-ch O-17 2025"]
[Site "Vrnjacka Banja"]
[Date "2025.03.25"]
[Round "6.5"]
[White "Gusev, Mikhail"]
[Black "Ljepic, Andrej"]
[Result "0-1"]
[Annotator "TA"]
[ECO "B42"]
[WhiteElo "2250"]
[BlackElo "2337"]
[PlyCount "66"]
[EventDate "2025.03.19"]
[EventType "swiss"]
[EventCountry "SRB"]
[SourceTitle "playchess.com"]
[Source "ChessBase"]
[SourceQuality "1"]
[TimeControl "5400+30"]

{[%evp 18,66,75,75,93,-25,-29,-56,-46,-38,-50,-304,-262,-268,-303,-252,-327,-617,-612,-790,-470,-451,-446,-483,-472,-479,-466,-525,-522,-743,-756,-979,-975,-975,-960,-961,-968,-961,-946,-939,-937,-5714,-5714,-5693,-5689,-1866,-1785,-1745,-1736,-1511,-1281]} 1. e4 {[%emt 0:00:04]} c5 {[%emt 0:00:11]} 2. Nf3 {[%emt 0:00:05]} e6 {[%emt 0:01:00]} 3. d4 {[%emt 0:00:48]} cxd4 {[%emt 0:00:07]} 4. Nxd4 {[%emt 0:00:08]} a6 {[%emt 0:00:24]} 5. Bd3 {[%emt 0:02:01]} Bc5 {[%emt 0:00:10]} 6. Nb3 {[%emt 0:00:39]} Ba7 {[%emt 0:00:37]} 7. O-O {[%emt 0:06:52]} Nc6 {[%emt 0:02:24]} 8. Qg4 {[%emt 0:02:20]} Nf6 {[%emt 0:12:30]} 9. Qxg7 {[%emt 0:01:52]} Rg8 {[%emt 0:00:23]} 10. Qh6 {[%emt 0:00:11]} Ne5 {[%emt 0:04:57] B42: Sicilian: Kan Variation: 5 Bd3.} 11. h3 $146 {[%emt 0:22:46]} (11. Nc3 $16) ({Predecessor:} 11. Be2 Nxe4 12. Be3 Bb8 13. Nc3 Nf6 14. Bg5 Nfg4 15. Bxd8 Nxh6 16. Bb6 d5 17. Rfe1 Nf5 18. Nd4 {0-1 Morozevich,A (2676)-Andreikin,D (2708) RUS-ch blitz 2017 (19)}) 11... Rg6 $1 $11 {[%emt 0:03:32]} 12. Qf4 {[%emt 0:01:14] Dodges Nf3+} Bb8 {[%emt 0:01:16] [#] Hoping for ...Nxd3. Black is slightly better.} 13. Qe3 {[%emt 0:10:30]} Qc7 {[%emt 0:01:03][%cal Oe5f3] ( -> ...Nf3+!)} 14. Rd1 $2 {[%emt 0:03:18][%mdl 8192]} (14. f4 $15 Ba7 15. Nd4) 14... Nxd3 $19 {[%emt 0:01:25]} 15. cxd3 {[%emt 0:00:10]} Qh2+ {[%emt 0:00:07]} 16. Kf1 {[%emt 0:00:07]} Qxg2+ {[%emt 0:00:27]} ({Not} 16... Rxg2 17. Qf3 Rg6 18. Nc3 $15) 17. Ke2 $2 {[%emt 0:00:11]} (17. Ke1) 17... Rg3 {[%emt 0:00:54] Black is clearly winning.} 18. Qd4 {[%emt 0:01:37]} Qf3+ {[%emt 0:01:36]} 19. Kd2 {[%emt 0:00:00]} Ba7 {[%emt 0:04:25]} (19... Rxh3 $2 20. Kc2 Ba7 21. Qe5 $19) 20. fxg3 {[%emt 0:01:00]} Bxd4 {[%emt 0:00:09]} 21. Nxd4 {[%emt 0:00:02]} Qf2+ {[%emt 0:00:24]} ({Don't take} 21... Qxg3 22. Ne2 Qxh3 23. Kc2 $19) 22. Kc3 {[%emt 0:00:04]} d5 {[%emt 0:01:41]} 23. e5 {[%emt 0:02:11] [#]} Bd7 $1 {[%emt 0:00:17]} 24. exf6 {[%emt 0:00:54]} (24. Kb3 Qxd4) 24... Rc8+ {[%emt 0:00:05]} (24... Qxg3 25. Ne2 d4+ (25... Qxh3 $2 26. Kd2 $19) 26. Kd2 Qg5+ (26... Qxh3 $2 27. Na3 $19) 27. Ke1 Qh4+ (27... Qxf6 $2 28. Bf4 $19) 28. Kd2 $19) 25. Kb3 {[%emt 0:00:04]} Qxd4 {[%emt 0:00:10]} 26. a4 {[%emt 0:00:03] White is weak on the light squares} Qb6+ {[%emt 0:00:30]} 27. Ka3 {[%emt 0:00:17]} Qc5+ {[%emt 0:00:34]} 28. Ka2 {[%emt 0:00:27]} Bxa4 {[%emt 0:00:09][%cal Oc5b4] ( -> ...Qb4!)} 29. Re1 {[%emt 0:00:14]} Qb4 {[%emt 0:03:14]} 30. Nd2 {[%emt 0:00:46] Prevents Qb3+.} Bc2 {[%emt 0:00:11][%cal Rb4a5]} 31. b3 {[%emt 0:00:25]} Qa5+ {[%emt 0:01:07]} 32. Kb2 {[%emt 0:00:03]} Qc3+ {[%emt 0:00:06]} 33. Ka2 {[%emt 0:00:07]} Rc5 {[%emt 0:00:23] White did not feel at home in the position after the opening.   Weighted Error Value: White=1.02/Black=0.20 (precise)   Loses game:     	White=1     	---        Mistake:       	White=2     	---        Inaccurate:     	White=1     	---        OK:         	White=1     	Black=6      Best:        	White=1     	Black=3      Strong:       	---       	Black=1} 0-1